bitfinex-derivatives/quotes_BNBF0:USTF0_20260221
["timestamp","ask_amount","ask_price","bid_price","bid_amount"]
[1771661181897,1.18536627,626.76,626.08,1.19421497]
[1771661185197,1.18536627,626.75,626.08,1.19421497]
[1771661191098,1.18536627,626.75,626.02,1.487]
[1771661191099,1.18536627,626.75,626.09,1.19421497]
[1771661192105,1.18536627,626.74,626.09,1.19421497]
[1771661192905,1.18536627,626.75,626.1,1.19421497]
[1771661193304,1.18536627,626.77,626.12,1.19421497]
[1771661195102,1.18536627,626.77,626.13,1.19421497]
[1771661197203,1.18536627,626.76,626.13,1.19421497]
[1771661198210,1.18536627,626.79,626.17,1.19421497]
[1771661199007,1.18536627,626.82,626.19,1.19421497]
[1771661199207,1.18536627,626.81,626.19,1.19421497]
[1771661200312,1.18536627,626.81,626.2,1.19421497]
[1771661201109,1.18536627,626.81,626.19,1.19421497]
[1771661201309,1.18536627,626.81,626.2,1.19421497]
[1771661202108,1.18536627,626.81,626.19,1.19421497]
[1771661202308,1.18536627,626.81,626.2,1.19421497]
[1771661207220,1.18536627,626.81,626.19,1.19421497]
[1771661209120,1.18536627,626.82,626.19,1.19421497]
[1771661209318,1.18536627,626.83,626.21,1.19421497]
[1771661211218,1.18536627,626.83,626.2,1.19421497]
[1771661214121,1.18536627,626.84,626.2,1.19421497]
[1771661224126,1.18536627,626.83,626.2,1.19421497]
[1771661231136,1.18536627,626.83,626.09,1.59302979]
[1771661231137,1.18536627,626.83,626.21,1.19421497]
[1771661232133,1.18536627,626.82,626.21,1.19421497]
[1771661235136,1.18536627,626.82,626.22,1.19421497]
[1771661236134,1.18536627,626.81,626.22,1.19421497]
[1771661236340,1.18536627,626.8,626.2,1.19421497]
[1771661237340,1.18536627,626.79,626.21,1.19421497]
[1771661237538,1.18536627,626.76,626.17,1.19421497]
[1771661237841,0.27773122,627.24,626.14,1.19421497]
[1771661237842,1.18536627,626.73,626.14,1.19421497]
[1771661238140,1.18536627,626.72,626.14,1.19421497]
[1771661238340,1.18536627,626.73,626.14,1.19421497]
[1771661239140,1.18536627,626.72,626.14,1.19421497]
[1771661239341,1.18536627,626.73,626.14,1.19421497]
[1771661240138,1.18536627,626.72,626.14,1.19421497]
[1771661240343,1.18536627,626.73,626.14,1.19421497]
[1771661241846,1.18536627,626.72,626.13,1.19421497]
[1771661245246,1.18536627,626.72,626.12,1.19421497]
[1771661246044,1.18536627,626.73,626.12,1.19421497]
[1771661248049,1.18536627,626.7,626.1,1.19421497]
[1771661248246,1.18536627,626.71,626.09,1.19421497]
[1771661252252,1.18536627,626.72,626.08,1.19421497]
[1771661271267,1.18536627,626.71,626.08,1.19421497]
[1771661271865,1.18536627,626.69,625.95,1.59302979]
[1771661275269,1.18536627,626.69,625.96,1.59302979]
[1771661276166,1.18536627,626.68,625.96,1.59302979]
[1771661279169,1.18536627,626.67,625.97,1.59302979]
[1771661281270,0.27773122,627.24,625.98,1.59302979]
[1771661281271,1.18536627,626.66,625.98,1.59302979]
[1771661281873,1.18536627,626.67,625.99,1.59302979]
[1771661282372,1.18536627,626.66,626.0,1.59302979]
[1771661288475,1.588734,626.77,626.0,1.59302979]
[1771661288676,1.19317231,626.66,626.0,1.59302979]
[1771661290177,1.19317231,626.65,626.0,1.59302979]
[1771661291280,1.19317231,626.65,626.01,1.59302979]
[1771661300889,1.19317231,626.65,626.02,1.923]
[1771661301989,1.19317231,626.69,626.15,1.19761242]
[1771661315195,1.19317231,626.69,626.16,1.19761242]
[1771661323198,1.19317231,626.68,626.16,1.19761242]
[1771661327702,1.588734,626.79,626.05,1.59302979]
[1771661328005,1.19348075,626.68,626.16,1.19787296]
[1771661328604,0.11052616,626.93,626.41,1.19787296]
[1771661329202,1.588734,627.02,626.32,1.19787296]
[1771661329401,1.588734,627.04,626.33,1.19787296]
[1771661329908,1.588734,627.03,626.33,1.19787296]
[1771661330207,1.588734,627.05,626.31,1.19787296]
[1771661331206,1.588734,627.06,626.3,1.19787296]
[1771661332105,1.588734,627.05,626.3,1.19787296]
[1771661332301,1.588734,627.06,626.29,1.19787296]
[1771661333305,1.588734,627.07,626.28,1.19787296]
[1771661335208,1.588734,627.08,626.27,1.19787296]
[1771661337204,1.588734,627.09,626.26,1.19787296]
[1771661339210,1.588734,627.1,626.26,1.19787296]
[1771661340308,1.588734,627.1,626.25,1.19787296]
[1771661343912,1.588734,627.11,626.25,1.19787296]
[1771661344213,1.588734,627.11,626.24,1.19787296]
[1771661345417,1.588734,627.12,626.25,1.19787296]
[1771661345712,1.588734,627.13,626.26,1.19787296]
[1771661347112,1.588734,627.14,626.27,1.19787296]
[1771661347315,1.86645747,627.16,626.28,1.19787296]
[1771661347717,1.86645747,627.16,626.28,2.99787296]
[1771661348016,3.971835,627.72,626.28,2.99787296]
[1771661348017,1.588734,627.17,626.29,1.19787296]
[1771661348317,1.588734,627.24,626.36,1.19787296]
[1771661349214,0.27763262,627.27,626.28,1.8]
[1771661349215,1.588734,627.25,626.35,1.19787296]
[1771661351213,1.588734,627.25,626.28,1.8]
[1771661351214,1.588734,627.26,626.34,1.19787296]
[1771661353220,1.588734,627.26,626.33,1.19787296]
[1771661355218,1.86636662,627.27,626.33,1.19787296]
[1771661362025,1.588734,627.26,626.32,1.19787296]
[1771661363126,1.588734,627.25,626.33,1.19787296]
[1771661363325,1.588734,627.25,626.32,1.19787296]
[1771661364231,1.588734,627.25,626.33,1.19787296]
[1771661366231,1.588734,627.24,626.34,1.19787296]
[1771661368331,1.588734,627.23,626.35,1.19787296]
[1771661369131,1.588734,627.22,626.35,1.19787296]
[1771661370232,1.588734,627.22,626.36,1.19787296]
[1771661371138,1.588734,627.21,626.37,1.19787296]
[1771661372138,0.27763262,627.27,626.37,1.19787296]
[1771661372139,1.588734,627.2,626.37,1.19787296]
[1771661372337,1.588734,627.2,626.38,1.19787296]
[1771661373138,1.588734,627.19,626.37,1.19787296]
[1771661373334,1.588734,627.17,626.39,1.19787296]
[1771661374537,1.588734,627.12,626.34,1.19787296]
[1771661376138,1.588734,627.12,626.28,1.8]
[1771661376139,1.588734,627.12,626.35,1.19787296]
[1771661381145,1.588734,627.11,626.36,1.19787296]
[1771661386248,1.588734,627.11,626.37,1.19787296]
[1771661387247,1.588734,627.1,626.37,1.19787296]
[1771661388848,1.19155902,626.99,626.37,1.19787296]
[1771661389248,1.19155902,626.98,626.38,1.19787296]
[1771661389949,1.19155902,626.99,626.38,1.19787296]
[1771661390249,1.19155902,626.99,626.39,1.19787296]
[1771661391150,1.19155902,626.98,626.39,1.19787296]
[1771661392055,1.19155902,626.98,626.38,1.19787296]
[1771661392254,1.19155902,626.97,626.38,1.19787296]
[1771661401262,1.19155902,626.97,626.39,1.19787296]
[1771661402658,1.19155902,626.95,626.37,1.19787296]
[1771661402860,1.19155902,626.91,626.33,1.19787296]
[1771661403264,1.19155902,626.91,626.32,1.19787296]
[1771661404271,1.19155902,626.92,626.32,1.19787296]
[1771661417788,1.19155902,626.91,626.31,1.19787296]
[1771661418183,1.19155902,626.91,626.32,1.19787296]
[1771661425387,1.19155902,626.92,626.32,1.19787296]
[1771661432194,1.19155902,626.91,626.32,1.19787296]
[1771661437398,1.588734,627.02,626.21,1.59302979]
[1771661437596,1.19172394,626.91,626.32,1.19598932]
[1771661439494,1.19172394,626.91,626.33,1.19598932]
[1771661441201,1.19172394,626.9,626.33,1.19598932]
[1771661444207,1.19172394,626.9,626.34,1.19598932]
[1771661445310,1.19172394,626.89,626.34,1.19598932]
[1771661447307,1.19172394,626.88,626.35,1.19598932]
[1771661461024,1.588734,626.99,626.24,1.59302979]
[1771661461223,1.19312728,626.88,626.35,1.1973989]
[1771661461726,1.19312728,626.86,626.33,1.1973989]
[1771661464327,1.19312728,626.86,626.34,1.846]
[1771661465025,1.19312728,626.87,626.34,3.0433989]
[1771661481249,1.19312728,626.87,626.34,1.1973989]
[1771661482151,1.19312728,626.87,626.33,1.1973989]
[1771661483953,1.19312728,626.87,626.34,1.331]
[1771661489753,1.19312728,626.88,626.34,2.5283989]
[1771661490655,1.19312728,626.89,626.35,1.1973989]
[1771661500066,1.19312728,626.9,626.36,1.1973989]
[1771661500267,1.19312728,626.93,626.38,1.1973989]
[1771661500764,1.19312728,626.94,626.39,1.1973989]
[1771661500967,1.19312728,627.03,626.48,1.1973989]
[1771661501263,1.19312728,627.04,626.46,1.1973989]
[1771661502265,1.19312728,627.05,626.45,1.1973989]
[1771661503162,1.19312728,627.06,626.44,1.1973989]
[1771661504267,1.19312728,627.07,626.44,1.1973989]
[1771661505364,1.19312728,627.07,626.43,1.1973989]
[1771661506266,1.19312728,627.08,626.43,1.1973989]
[1771661507365,1.19312728,627.08,626.42,1.1973989]
[1771661509269,1.19312728,627.09,626.42,1.1973989]
[1771661510268,1.19312728,627.09,626.41,1.1973989]
[1771661513269,1.19312728,627.09,626.4,1.1973989]
[1771661515275,1.19312728,627.1,626.4,1.1973989]
[1771661528289,1.19312728,627.09,626.4,1.1973989]
[1771661528487,1.19312728,627.13,626.44,1.1973989]
[1771661528690,1.19312728,627.17,626.48,1.1973989]
[1771661530186,1.19312728,627.18,626.48,1.1973989]
[1771661530385,1.19312728,627.18,626.49,1.1973989]
[1771661535093,1.19312728,627.2,626.5,1.1973989]
[1771661535988,1.19312728,627.2,626.51,1.1973989]
[1771661539994,1.19312728,627.21,626.52,1.1973989]
[1771661541191,1.19312728,627.2,626.53,1.1973989]
[1771661542295,1.19312728,627.21,626.53,1.1973989]
[1771661543293,1.19312728,627.2,626.54,1.1973989]
[1771661545193,1.19312728,627.19,626.55,1.1973989]
[1771661546294,1.19312728,627.2,626.55,1.1973989]
[1771661547198,1.19312728,627.2,626.54,1.1973989]
[1771661547894,1.19312728,627.2,626.36,1.701]
[1771661547895,1.19312728,627.21,626.56,1.1973989]
[1771661549302,1.19312728,627.22,626.56,1.1973989]
[1771661551699,1.19312728,627.23,626.57,1.1973989]
[1771661554204,1.19312728,627.24,626.57,1.1973989]
[1771661560206,1.19312728,627.23,626.57,1.1973989]
[1771661563410,1.19312728,627.22,626.57,1.1973989]
[1771661567211,1.19312728,627.21,626.57,1.1973989]
[1771661568516,1.19312728,627.21,626.58,1.1973989]
[1771661570219,1.19312728,627.2,626.58,1.1973989]
[1771661570519,1.19312728,627.2,626.59,1.1973989]
[1771661572218,1.19312728,627.2,626.48,1.59302979]
[1771661572219,1.19312728,627.19,626.6,1.1973989]
[1771661572522,1.19312728,627.18,626.59,1.1973989]
[1771661573219,1.19312728,627.18,626.6,1.1973989]
[1771661574220,1.19312728,627.17,626.6,1.1973989]
[1771661576225,1.19312728,627.17,626.61,1.1973989]
[1771661580228,1.19312728,627.16,626.61,1.1973989]
[1771661582933,1.19312728,627.17,626.62,1.1973989]
[1771661588239,1.19312728,627.17,626.63,1.1973989]
[1771661591237,1.19312728,627.16,626.63,1.1973989]
[1771661594541,1.19312728,627.05,626.52,1.1973989]
[1771661594741,1.19312728,626.98,626.49,1.21]
[1771661595440,1.19312728,627.01,626.49,1.21]
[1771661596240,1.19312728,627.02,626.49,1.21]
[1771661596440,1.19312728,626.98,626.49,1.21]
[1771661596845,1.19312728,626.96,626.49,1.21]
[1771661597341,1.19312728,626.98,626.49,1.21]
[1771661598345,1.19312728,626.99,626.49,1.21]
[1771661599250,1.19312728,627.0,626.49,1.21]
[1771661600252,2.383101,627.23,626.49,1.21]
[1771661600253,1.19312728,627.01,626.49,1.21]
[1771661601451,1.19312728,627.02,626.49,1.21]
[1771661603449,1.19312728,627.03,626.49,1.21]
[1771661605353,1.19312728,627.04,626.49,1.21]
[1771661608356,1.19312728,627.05,626.49,1.21]
[1771661612457,1.19312728,627.06,626.49,1.21]
[1771661617856,1.19312728,627.07,626.49,1.21]
[1771661624260,1.19312728,627.06,626.49,1.21]
[1771661628261,1.19312728,627.05,626.49,1.21]
[1771661630265,1.19312728,627.04,626.49,1.21]
[1771661632362,1.19312728,627.03,626.49,1.21]
[1771661632561,1.19312728,627.04,626.49,1.21]
[1771661633365,1.19312728,627.03,626.49,1.21]
[1771661634368,1.19312728,627.02,626.49,1.21]
[1771661635465,1.19312728,627.01,626.49,1.21]
[1771661636369,1.19312728,627.0,626.49,1.21]
[1771661636770,1.19312728,627.0,626.33,1.1973989]
[1771661637265,1.19312728,626.99,626.34,1.1973989]
[1771661638465,1.19312728,626.97,626.36,1.1973989]
[1771661639366,1.19312728,626.94,626.39,1.1973989]
[1771661641268,1.19312728,626.94,626.4,1.1973989]
[1771661643469,1.19312728,626.93,626.39,1.1973989]
[1771661649777,1.19312728,626.94,626.4,1.1973989]
[1771661653178,1.19312728,626.95,626.41,1.1973989]
[1771661661383,1.19312728,626.94,626.41,1.1973989]
[1771661662483,1.19312728,626.95,626.41,1.1973989]
[1771661663484,1.19312728,626.95,626.32,1.529]
[1771661663485,1.19312728,626.97,626.44,1.1973989]
[1771661664286,1.19312728,626.97,626.43,1.1973989]
[1771661666289,1.19312728,626.98,626.43,1.1973989]
[1771661674390,1.19312728,626.98,626.42,1.1973989]
[1771661687505,1.19312728,626.98,626.43,1.667]
[1771661690305,1.19312728,626.98,626.43,2.8643989]
[1771661690604,1.588734,627.1,626.43,1.667]
[1771661690807,1.19272418,626.98,626.43,2.86346537]
[1771661692509,1.19272418,626.98,626.43,1.667]
[1771661694309,1.19272418,626.97,626.43,1.667]
[1771661697311,1.19272418,626.97,626.43,2.86346537]
[1771661700511,1.19272418,626.95,626.43,1.667]
[1771661710520,1.19272418,626.95,626.41,1.19646537]
[1771661713119,1.19272418,626.95,626.42,1.849]
[1771661720722,1.588734,627.07,626.42,1.849]
[1771661721026,1.19306089,626.95,626.42,1.849]
[1771661722528,1.19306089,626.96,626.42,3.04589448]
[1771661727029,1.19306089,626.97,626.43,1.19689448]
[1771661729832,1.19306089,626.97,626.44,1.481]
[1771661735333,1.19306089,626.96,626.44,1.481]
[1771661739337,1.19306089,626.97,626.44,2.67789448]
[1771661744543,1.19306089,627.0,626.46,1.19689448]
[1771661744744,1.19306089,627.1,626.56,1.19689448]
[1771661745446,1.19306089,627.12,626.54,1.19689448]
[1771661746345,1.19306089,627.13,626.53,1.19689448]
[1771661747547,1.19306089,627.14,626.53,1.19689448]
[1771661748343,1.19306089,627.14,626.52,1.19689448]
[1771661749441,1.19306089,627.15,626.52,1.19689448]
[1771661750347,1.19306089,627.15,626.51,1.19689448]
[1771661751248,1.19306089,627.15,626.52,1.672]
[1771661752346,1.19306089,627.16,626.52,1.672]
[1771661755351,1.19306089,627.17,626.52,1.672]
[1771661764361,1.19306089,627.18,626.52,1.672]
[1771661767167,1.19306089,627.17,626.52,1.672]
[1771661775370,1.588734,627.28,626.52,1.672]
[1771661775666,1.19160024,627.17,626.52,1.672]
[1771661776368,1.19160024,627.16,626.52,1.672]
[1771661780567,1.19160024,627.15,626.52,1.672]
[1771661782672,1.19160024,627.15,626.52,2.86550688]
[1771661783275,1.19160024,627.15,626.52,1.19350688]
[1771661783876,1.19160024,627.16,626.53,1.19350688]
[1771661784176,1.19160024,627.18,626.55,1.19350688]
[1771661784372,1.19160024,627.18,626.56,1.19350688]
[1771661784873,1.19160024,627.16,626.54,1.19350688]
[1771661785371,1.19160024,627.11,626.5,1.19350688]
[1771661786473,1.19160024,627.11,626.51,2.41650688]
[1771661787477,1.19160024,627.1,626.52,1.19350688]
[1771661788372,1.19160024,627.09,626.52,1.19350688]
[1771661789280,1.19160024,627.08,626.54,1.19350688]
[1771661793384,1.19160024,627.08,626.53,1.19350688]
[1771661798482,1.19160024,627.09,626.53,1.19350688]
[1771661812600,1.19160024,627.08,626.53,1.19350688]
[1771661821508,1.19160024,627.12,626.56,1.19350688]
[1771661824710,1.19160024,627.16,626.6,1.19350688]
[1771661824911,1.19160024,627.24,626.68,1.19350688]
[1771661825212,1.19160024,627.25,626.67,1.19350688]
[1771661825414,1.19160024,627.27,626.69,1.19350688]
[1771661826116,1.19160024,627.28,626.67,1.19350688]
[1771661826316,1.19160024,627.34,626.74,1.19350688]
[1771661826612,1.19160024,627.36,626.75,1.19350688]
[1771661827112,1.19160024,627.38,626.73,1.19350688]
[1771661828216,1.19160024,627.39,626.72,1.19350688]
[1771661829114,1.19160024,627.4,626.71,1.19350688]
[1771661830117,1.19160024,627.41,626.7,1.19350688]
[1771661831122,1.19160024,627.42,626.69,1.19350688]
[1771661832225,0.27747766,627.62,626.46,2.392243]
[1771661832226,1.19160024,627.43,626.68,1.19350688]
[1771661834125,1.19160024,627.44,626.67,1.19350688]
[1771661836122,1.19160024,627.44,626.66,1.19350688]
[1771661836423,1.588734,627.56,626.66,1.19350688]
[1771661836424,1.19160024,627.45,626.66,1.19350688]
[1771661839225,1.19160024,627.45,626.65,1.19350688]
[1771661839428,1.19160024,627.46,626.65,1.19350688]
[1771661842632,1.19160024,627.48,626.66,1.19350688]
[1771661851341,1.19160024,627.47,626.66,1.19350688]
[1771661853340,1.19160024,627.47,626.67,1.19350688]
[1771661855446,1.19160024,627.46,626.67,1.19350688]
[1771661857144,1.19160024,627.46,626.68,1.19350688]
[1771661858349,1.19160024,627.45,626.68,1.19350688]
[1771661859452,1.19160024,627.45,626.69,1.19350688]
[1771661860452,1.19160024,627.44,626.69,1.19350688]
[1771661861153,1.19160024,627.44,626.7,1.19350688]
[1771661862157,1.19160024,627.43,626.7,1.19350688]
[1771661862357,1.19160024,627.43,626.71,1.19350688]
[1771661863357,1.19160024,627.42,626.72,1.19350688]
[1771661864357,1.19160024,627.41,626.73,1.19350688]
[1771661865961,1.19160024,627.4,626.74,1.19350688]
[1771661867158,1.19160024,627.39,626.75,1.19350688]
[1771661868165,1.19160024,627.37,626.77,1.19350688]
[1771661869162,1.19160024,627.35,626.79,1.19350688]
[1771661869563,1.588734,627.46,626.68,1.59302979]
[1771661869761,1.1940808,627.35,626.79,1.19561689]
[1771661870364,1.1940808,627.34,626.8,1.19561689]
[1771661871364,1.1940808,627.33,626.81,1.19561689]
[1771661872564,1.1940808,627.32,626.81,1.19561689]
[1771661876761,1.1940808,627.32,626.69,1.59302979]
[1771661876762,1.1940808,627.31,626.8,1.19561689]
[1771661876966,1.1940808,627.11,626.61,1.858]
[1771661877163,1.1940808,627.16,626.61,1.858]
[1771661878163,1.1940808,627.18,626.61,1.858]
[1771661879169,1.1940808,627.19,626.61,1.858]
[1771661880970,1.1940808,627.2,626.61,1.858]
[1771661883170,1.1940808,627.21,626.61,1.858]
[1771661884370,1.1940808,627.22,626.61,1.858]
[1771661886174,1.1940808,627.23,626.61,1.858]
[1771661888274,1.1940808,627.24,626.61,1.858]
[1771661889775,1.1940808,627.25,626.61,1.858]
[1771661889974,1.1940808,627.27,626.61,1.858]
[1771661890174,1.1940808,627.29,626.61,1.858]
[1771661890371,1.1940808,627.29,626.55,1.19561689]
[1771661893080,1.1940808,627.29,626.54,1.19561689]
[1771661893480,1.1940808,627.29,626.55,1.315]
[1771661894078,1.1940808,627.31,626.56,1.19561689]
[1771661895378,1.1940808,627.32,626.58,1.19561689]
[1771661902682,1.1940808,627.19,626.55,1.315]
[1771661902885,0.97694094,627.18,626.55,1.315]
[1771661903085,0.97694094,627.17,626.55,1.315]
[1771661903288,0.97694094,627.16,626.55,1.315]
[1771661903587,0.97694094,627.15,626.55,1.315]
[1771661903887,0.97694094,627.14,626.55,1.315]
[1771661904084,0.97694094,627.13,626.55,1.315]
[1771661904287,0.97694094,627.12,626.55,1.315]
[1771661904582,0.97694094,627.11,626.55,1.315]
[1771661904782,1.1940808,627.19,626.55,1.315]
[1771661904783,0.97694094,627.1,626.55,1.315]
[1771661904982,0.97694094,627.09,626.55,1.315]
[1771661905184,0.97694094,627.08,626.55,1.315]
[1771661905382,0.97694094,627.07,626.55,1.315]
[1771661905586,0.97694094,627.06,626.55,1.315]
[1771661905786,0.97694094,627.05,626.55,1.315]
[1771661905985,0.97694094,627.04,626.55,1.315]
[1771661906186,0.97694094,627.03,626.55,1.315]
[1771661906388,0.97694094,627.02,626.55,1.315]
[1771661906584,1.1940808,627.21,626.55,1.315]
[1771661906585,0.97694094,627.01,626.55,1.315]
[1771661906783,1.1940808,627.27,626.55,1.315]
[1771661906989,0.97597781,627.26,626.55,1.315]
[1771661907186,0.97597781,627.25,626.55,1.315]
[1771661907389,0.97597781,627.24,626.55,1.315]
[1771661907587,0.97597781,627.23,626.32,2.66983687]
[1771661907888,0.97597781,627.22,626.32,2.66983687]
[1771661908087,0.97597781,627.21,626.32,2.66983687]
[1771661908291,0.97597781,627.2,626.32,2.66983687]
[1771661908492,0.97597781,627.19,626.32,2.66983687]
[1771661908688,0.97597781,627.18,626.32,2.66983687]
[1771661908892,0.97597781,627.17,626.32,2.66983687]
[1771661909092,0.97597781,627.16,626.32,2.66983687]
[1771661909293,0.97597781,627.15,626.32,2.66983687]
[1771661909488,0.97597781,627.14,626.32,2.66983687]
[1771661909691,0.97597781,627.13,626.32,2.66983687]
[1771661909990,0.97597781,627.12,626.32,2.66983687]
[1771661910188,0.97597781,627.11,626.32,2.66983687]
[1771661910490,0.97597781,627.1,626.32,2.66983687]
[1771661910690,0.97597781,627.09,626.32,2.66983687]
[1771661910889,0.97597781,627.08,626.32,2.66983687]
[1771661911093,0.97597781,627.07,626.32,2.66983687]
[1771661911393,1.1940808,627.28,626.34,2.392243]
[1771661911592,0.97619745,627.27,626.34,2.392243]
[1771661911893,0.97619745,627.26,626.34,2.392243]
[1771661912092,0.97619745,627.25,626.34,2.392243]
[1771661912395,0.97619745,627.24,626.35,2.392243]
[1771661912594,0.97619745,627.23,626.35,2.392243]
[1771661912793,0.97619745,627.22,626.35,2.392243]
[1771661912992,0.97619745,627.21,626.35,2.392243]
[1771661913190,0.97619745,627.2,626.35,2.392243]
[1771661913392,0.97619745,627.19,626.35,2.392243]
[1771661913595,0.97619745,627.18,626.35,2.392243]
[1771661913792,0.97619745,627.17,626.35,2.392243]
[1771661914094,0.97619745,627.16,626.35,2.392243]
[1771661914291,0.97619745,627.15,626.37,2.392243]
[1771661914494,0.97619745,627.14,626.37,2.392243]
[1771661914693,0.97619745,627.13,626.37,2.392243]
[1771661914893,0.97619745,627.12,626.37,2.392243]
[1771661915194,0.97619745,627.11,626.37,2.392243]
[1771661915392,1.1940808,627.31,626.37,2.392243]
[1771661915695,0.97637488,627.3,626.37,2.392243]
[1771661915894,0.97637488,627.29,626.37,2.392243]
[1771661916092,0.97637488,627.28,626.37,2.392243]
[1771661916297,0.97637488,627.27,626.37,2.392243]
[1771661916497,0.97637488,627.26,626.37,2.392243]
[1771661916695,0.97637488,627.25,626.37,2.392243]
[1771661916995,0.97637488,627.24,626.37,2.392243]
[1771661917194,0.97637488,627.23,626.37,2.392243]
[1771661917395,0.97637488,627.22,626.37,2.392243]
[1771661917595,0.97637488,627.21,626.37,2.392243]
[1771661917800,0.97637488,627.2,626.37,2.392243]
[1771661917998,0.97637488,627.19,626.37,2.392243]
[1771661918199,0.97637488,627.18,626.37,2.392243]
[1771661918494,0.97637488,627.17,626.37,2.392243]
[1771661918693,0.97637488,627.16,626.37,2.392243]
[1771661918898,0.97637488,627.15,626.37,2.392243]
[1771661919199,0.97637488,627.14,626.37,2.392243]
[1771661919398,0.97637488,627.13,626.37,2.392243]
[1771661919597,0.97637488,627.12,626.37,2.392243]
[1771661919798,0.97637488,627.11,626.37,2.392243]
[1771661920096,1.1940808,627.31,626.37,2.392243]
[1771661920297,0.97631312,627.3,626.37,2.392243]
[1771661920496,0.97631312,627.29,626.37,2.392243]
[1771661920697,0.97631312,627.28,626.37,2.392243]
[1771661920997,0.97631312,627.27,626.37,2.392243]
[1771661921295,0.97631312,627.26,626.37,2.392243]
[1771661921499,0.97631312,627.25,626.37,2.392243]
[1771661921701,0.97631312,627.24,626.37,2.392243]
[1771661921900,0.97631312,627.23,626.37,2.392243]
[1771661922101,0.97631312,627.22,626.37,2.392243]
[1771661922302,0.97631312,627.21,626.37,2.392243]
[1771661922498,0.97631312,627.2,626.37,2.392243]
[1771661922703,0.97631312,627.19,626.37,2.392243]
[1771661922904,0.97631312,627.18,626.37,2.392243]
[1771661923200,0.97631312,627.17,626.37,2.392243]
[1771661923404,0.97631312,627.16,626.37,2.392243]
[1771661923605,0.97631312,627.15,626.37,2.392243]
[1771661923802,0.97631312,627.14,626.37,2.392243]
[1771661924005,0.97631312,627.13,626.37,2.392243]
[1771661924201,0.97631312,627.12,626.37,2.392243]
[1771661924405,0.97631312,627.11,626.37,2.392243]
[1771661924602,1.1940808,627.31,626.37,2.392243]
[1771661924803,0.97627895,627.3,626.37,2.392243]
[1771661925005,0.97627895,627.29,626.37,2.392243]
[1771661925203,0.97627895,627.28,626.37,2.392243]
[1771661925403,0.97627895,627.27,626.37,2.392243]
[1771661925602,0.97627895,627.26,626.37,2.392243]
[1771661925802,0.97627895,627.25,626.37,2.392243]
[1771661926006,0.97627895,627.24,626.37,2.392243]
[1771661926207,0.97627895,627.23,626.37,2.392243]
[1771661926403,0.97627895,627.22,626.37,2.392243]
[1771661926603,0.97627895,627.21,626.37,2.392243]
[1771661926808,0.97627895,627.2,626.37,2.392243]
[1771661927104,0.97627895,627.19,626.37,2.392243]
[1771661927304,0.97627895,627.18,626.37,2.392243]
[1771661927605,0.97627895,627.17,626.37,2.392243]
[1771661927803,0.97627895,627.16,626.37,2.392243]
[1771661928108,0.97627895,627.15,626.37,2.392243]
[1771661928307,0.97627895,627.14,626.37,2.392243]
[1771661928508,0.97627895,627.13,626.37,2.392243]
[1771661928706,0.97627895,627.12,626.37,2.392243]
[1771661928905,0.97627895,627.11,626.37,2.392243]
[1771661929106,1.1940808,627.31,626.37,2.392243]
[1771661929306,2.17051981,627.3,626.37,2.392243]
[1771661929504,0.97643901,627.29,626.37,2.392243]
[1771661929709,0.97643901,627.28,626.37,2.392243]
[1771661930005,0.97643901,627.27,626.37,2.392243]
[1771661930205,0.97643901,627.26,626.37,2.392243]
[1771661930410,0.97643901,627.25,626.37,2.392243]
[1771661930610,0.97643901,627.24,626.37,2.392243]
[1771661930906,0.97643901,627.23,626.37,2.392243]
[1771661931104,0.97643901,627.22,626.37,2.392243]
[1771661931306,0.97643901,627.21,626.38,2.392243]
[1771661931608,0.97643901,627.2,626.38,2.392243]
[1771661931810,0.97643901,627.19,626.38,2.392243]
[1771661932008,0.97643901,627.18,626.38,2.392243]
[1771661932206,1.1940808,627.3,626.38,2.392243]
[1771661932207,0.97643901,627.17,626.38,2.392243]
[1771661932406,1.1940808,627.3,626.38,2.392243]
[1771661932407,0.97643901,627.16,626.38,2.392243]
[1771661932607,0.97643901,627.15,626.38,2.392243]
[1771661932806,1.1940808,627.34,626.54,1.59025337]
[1771661933010,1.1940808,627.3,626.5,1.59025337]
[1771661933208,1.1940808,627.27,626.47,1.59025337]
[1771661934111,1.1940808,627.26,626.47,1.59025337]
[1771661936213,1.1940808,627.26,626.32,0.27759387]
[1771661936214,1.1940808,627.26,626.46,1.59025337]
[1771661936517,1.1940808,627.24,626.46,1.59025337]
[1771661937817,1.1940808,627.21,626.44,1.59025337]
[1771661938616,1.1940808,627.21,626.45,1.336]
[1771661948226,1.1940808,627.21,626.45,2.92625337]
[1771661948426,1.1940808,627.21,626.45,1.336]